bitfinex-derivatives/quotes_BTCF0:USTF0_20240910
["timestamp","ask_amount","ask_price","bid_price","bid_amount"]
[1725975081805,0.087825,56929.0,56913.0,0.907]
[1725975082103,0.0041,56931.0,56930.0,0.087822]
[1725975082303,0.22,56942.0,56930.0,0.22]
[1725975082304,0.087812,56937.0,56930.0,0.22]
[1725975082500,0.087812,56937.0,56931.0,0.087821]
[1725975082696,0.087806,56941.0,56926.0,0.22]
[1725975082898,0.087806,56941.0,56934.0,0.087815]
[1725975083105,0.087806,56941.0,56937.0,0.087811]
[1725975083400,0.0969,56942.0,56938.0,0.087808]
[1725975083599,0.0969,56942.0,56935.0,0.22]
[1725975083804,0.0041,56946.0,56945.0,0.087799]
[1725975084006,0.22,56946.0,56930.0,0.22]
[1725975084210,0.088805,56941.0,56935.0,0.087813]
[1725975084506,0.088805,56941.0,56940.0,0.087807]
[1725975084507,0.001,56941.0,56940.0,0.087807]
[1725975086297,0.001,56946.0,56945.0,0.001]
[1725975086499,0.001,56946.0,56945.0,0.088799]
[1725975087003,0.087794,56949.0,56945.0,0.087799]
[1725975087509,0.087795,56948.0,56942.0,0.087803]
[1725975087817,0.0878,56945.0,56934.0,0.25090131]
[1725975088014,0.0878,56945.0,56934.0,0.03090131]
[1725975088313,0.0878,56945.0,56941.0,0.087805]
[1725975088612,0.221,56946.0,56942.0,0.087803]
[1725975088812,0.308798,56946.0,56945.0,0.001]
[1725975089111,0.001,56946.0,56945.0,0.001]
[1725975089307,0.001,56946.0,56934.0,0.308816]
[1725975089507,0.001,56946.0,56945.0,0.087799]
[1725975089698,0.001,56946.0,56939.0,0.22]
[1725975089699,0.001,56948.0,56947.0,0.087795]
[1725975090516,0.087793,56949.0,56948.0,0.087795]
[1725975090710,0.087793,56949.0,56946.0,0.087798]
[1725975090911,0.087793,56949.0,56948.0,0.087795]
[1725975091414,0.087787,56953.0,56950.0,0.087791]
[1725975091614,0.095,56954.0,56939.0,0.22]
[1725975091910,0.095,56954.0,56950.0,0.087791]
[1725975092115,0.087789,56952.0,56950.0,0.087791]
[1725975092410,0.087789,56952.0,56951.0,0.08779]
[1725975092716,0.107021,56972.0,56948.0,0.221]
[1725975092905,0.0041,56967.0,56966.0,0.087767]
[1725975093105,0.18309711,56967.0,56963.0,0.13216996]
[1725975093422,0.27895149,56966.0,56965.0,0.087768]
[1725975093717,0.14205872,56966.0,56965.0,0.087768]
[1725975093914,0.13689277,56967.0,56966.0,0.087767]
[1725975094109,0.06118405,56967.0,56966.0,0.087767]
[1725975094306,0.14333922,56967.0,56966.0,0.088767]
[1725975094912,0.14333922,56967.0,56966.0,0.001]
[1725975095124,0.23110422,56967.0,56966.0,0.001]
[1725975095418,0.14333922,56967.0,56966.0,0.088767]
[1725975095617,0.19056838,56967.0,56966.0,0.088767]
[1725975095820,0.28221029,56967.0,56966.0,0.089767]
[1725975096017,0.08415517,56967.0,56966.0,0.089767]
[1725975096619,0.003,56967.0,56966.0,0.309767]
[1725975096915,0.03145528,56967.0,56966.0,0.309767]
[1725975097711,0.10567281,56967.0,56966.0,0.309767]
[1725975097911,0.03145528,56967.0,56966.0,0.089767]
[1725975098115,0.003,56967.0,56966.0,0.002]
[1725975098514,0.08252098,56967.0,56966.0,0.089767]
[1725975098918,0.090765,56967.0,56966.0,0.002]
[1725975099219,0.14154258,56967.0,56966.0,0.089767]
[1725975099422,0.20228512,56967.0,56966.0,0.089767]
[1725975099918,0.08252098,56967.0,56966.0,0.089767]
[1725975100623,0.03145528,56967.0,56966.0,0.397534]
[1725975100819,0.03145528,56967.0,56966.0,1.524174]
[1725975100820,0.003,56967.0,56966.0,1.524174]
[1725975101016,0.10264644,56974.0,56971.0,0.087759]
[1725975101219,0.13687107,56986.0,56971.0,0.087759]
[1725975101220,0.0041,56985.0,56972.0,0.0979]
[1725975101521,0.4245,56989.0,56980.0,0.087744]
[1725975101818,0.4245,56989.0,56975.0,0.22]
[1725975101819,0.292231,56989.0,56975.0,0.22]
[1725975102021,0.187531,56989.0,56982.0,0.087741]
[1725975102210,0.187531,56989.0,56979.0,0.22]
[1725975102211,0.0998,56989.0,56979.0,0.22]
[1725975102414,0.10264644,56996.0,56984.0,0.22]
[1725975102616,0.2241,56998.0,56987.0,0.087734]
[1725975102617,0.087725,56994.0,56987.0,0.087734]
[1725975102825,0.087727,56992.0,56984.0,0.22]
[1725975103024,0.002,56989.0,56984.0,0.087739]
[1725975103319,0.002,56989.0,56980.0,0.001]
[1725975103320,0.087744,56981.0,56980.0,0.001]
[1725975103520,0.22,56981.0,56971.0,0.001]
[1725975103823,0.087764,56968.0,56955.0,0.22]
[1725975104022,0.087759,56971.0,56955.0,0.25146917]
[1725975104215,0.087759,56971.0,56960.0,0.22]
[1725975104412,0.307752,56976.0,56960.0,0.22]
[1725975104726,0.0041,56978.0,56969.0,0.087761]
[1725975105024,0.087748,56979.0,56964.0,0.22]
[1725975105220,0.087748,56979.0,56970.0,0.087759]
[1725975105528,0.087748,56978.0,56964.0,0.22]
[1725975105722,0.08774,56984.0,56974.0,0.22]
[1725975105922,0.087695,57013.0,56974.0,0.22]
[1725975105923,0.087743,56982.0,56974.0,0.22]
[1725975106225,0.22,56987.0,56969.0,0.221]
[1725975106528,0.087743,56982.0,56969.0,0.22]
[1725975106721,0.087743,56982.0,56969.0,1.12]
[1725975106921,0.0041,56986.0,56975.0,0.087752]
[1725975107318,0.087738,56985.0,56976.0,0.087751]
[1725975107515,0.22,56992.0,56986.0,0.087735]
[1725975107719,0.10264644,56995.0,56987.0,0.22]
[1725975107720,0.087723,56995.0,56987.0,0.22]
[1725975108719,0.0041,56998.0,56981.0,0.087743]
[1725975109026,0.087729,56991.0,56982.0,0.087742]
[1725975109225,0.087729,56991.0,56983.0,0.08774]
[1725975109524,0.087729,56991.0,56984.0,0.087739]
[1725975109930,0.001,56985.0,56984.0,0.087739]
[1725975110724,0.307738,56985.0,56984.0,0.001]
[1725975110914,0.22,56989.0,56984.0,0.00040433]
[1725975111117,0.088729,56991.0,56987.0,0.21975918]
[1725975111429,0.02844721,56990.0,56984.0,0.00040433]
[1725975111730,0.19137544,56991.0,56984.0,0.08814233]
[1725975111731,0.02844721,56989.0,56984.0,0.08814233]
[1725975112021,0.10364644,56991.0,56986.0,0.087736]
[1725975112214,0.02844655,56990.0,56986.0,0.087736]
[1725975113027,0.02844655,56990.0,56984.0,0.00140433]
[1725975113330,0.001,56985.0,56984.0,0.089739]
[1725975113518,0.001,56985.0,56984.0,0.088739]
[1725975113716,0.001,56985.0,56984.0,0.615179]
[1725975113918,0.001,56985.0,56984.0,1.215179]
[1725975114127,0.10264644,56993.0,56992.0,0.087727]
[1725975114325,0.02844447,56993.0,56991.0,0.22]
[1725975114528,0.72708001,57000.0,56995.0,0.087722]
[1725975114529,0.10264644,56996.0,56995.0,0.087722]
[1725975114733,0.10264644,56996.0,56991.0,0.087728]
[1725975115024,0.13108996,56995.0,56992.0,0.087727]
[1725975115225,0.02844407,56994.0,56992.0,0.087727]
[1725975115528,0.02844407,56993.0,56992.0,0.087727]
[1725975115720,0.10264644,56995.0,56992.0,0.087727]
[1725975116225,0.087718,56998.0,56992.0,0.087727]
[1725975116826,0.72712,57000.0,56994.0,0.087723]
[1725975117021,0.7248,57000.0,56995.0,0.087721]
[1725975117224,0.7248,57000.0,56991.0,0.001]
[1725975117430,0.7248,57000.0,56995.0,0.087721]
[1725975118218,0.087716,56999.0,56992.0,0.002]
[1725975118432,0.307725,56993.0,56992.0,0.002]
[1725975118633,0.307725,56993.0,56973.0,0.1044]
[1725975118634,0.087728,56991.0,56973.0,0.1044]
[1725975118825,0.087736,56986.0,56974.0,0.087754]
[1725975119029,0.087736,56986.0,56979.0,0.087745]
[1725975119239,0.1031,56985.0,56973.0,0.13640597]
[1725975119441,0.08774,56984.0,56983.0,0.087741]
[1725975120330,0.1031,56985.0,56979.0,0.001]
[1725975120645,0.1031,56985.0,56984.0,0.087739]
[1725975121525,0.1978,56992.0,56983.0,0.001]
[1725975121726,0.1012,56994.0,56985.0,0.22]
[1725975121925,0.1012,56994.0,56989.0,0.087731]
[1725975122130,0.087727,56992.0,56991.0,0.087728]
[1725975122935,0.002,56992.0,56991.0,0.087728]
[1725975123331,0.002,56992.0,56984.0,0.088739]
[1725975123332,0.001,56985.0,56984.0,0.088739]
[1725975123529,0.088738,56985.0,56984.0,0.001]
[1725975123934,0.176476,56985.0,56984.0,0.001]
[1725975124132,0.087753,56975.0,56974.0,0.087754]
[1725975124339,0.307748,56979.0,56962.0,0.4277]
[1725975124525,0.307748,56979.0,56962.0,0.45995179]
[1725975124526,0.190149,56978.0,56962.0,0.45995179]
[1725975124731,0.190149,56978.0,56969.0,0.087761]
[1725975125030,0.190149,56978.0,56954.0,0.05233064]
[1725975125031,0.22,56970.0,56953.0,0.22]
[1725975125338,0.02845565,56977.0,56968.0,0.087762]
[1725975125339,0.087757,56973.0,56968.0,0.087762]
[1725975125532,0.087757,56973.0,56962.0,0.22]
[1725975125727,0.08775,56977.0,56963.0,0.08777]
[1725975125931,0.1024,56978.0,56967.0,0.22]
[1725975126238,0.1024,56978.0,56963.0,0.087771]
[1725975126239,0.10264644,56984.0,56976.0,0.22]
[1725975126430,0.089738,56985.0,56982.0,0.087742]
[1725975126431,0.1280528,56983.0,56982.0,0.087742]
[1725975126741,0.0996,56983.0,56982.0,0.087742]
[1725975128037,0.1026,56983.0,56982.0,0.088742]
[1725975129543,0.003,56983.0,56982.0,0.088742]
[1725975129933,0.087734,56988.0,56976.0,0.22]
[1725975130133,0.002,56983.0,56982.0,0.088742]
[1725975130629,0.003,56983.0,56982.0,0.089742]
[1725975131030,0.002,56983.0,56982.0,0.001]
[1725975131337,0.087741,56983.0,56979.0,0.05233064]
[1725975131532,0.1015,56982.0,56976.0,0.05233064]
[1725975131736,0.1015,56982.0,56974.0,0.0697413]
[1725975131737,0.22,56981.0,56974.0,0.05233064]
[1725975131942,0.22,56981.0,56970.0,0.05233064]
[1725975131943,0.22,56977.0,56970.0,0.05233064]
[1725975132237,0.1035,56981.0,56967.0,0.0697413]
[1725975132238,0.307759,56972.0,56967.0,0.05233064]
[1725975132432,0.191244,56981.0,56970.0,0.087759]
[1725975132433,0.22,56976.0,56970.0,0.087759]
[1725975132635,0.307752,56976.0,56970.0,0.087759]
[1725975132833,0.1015,56982.0,56973.0,0.22]
[1725975133036,0.087748,56978.0,56973.0,0.05233064]
[1725975133239,0.087748,56978.0,56975.0,0.087753]
[1725975134041,0.3215,56982.0,56968.0,0.05233064]
[1725975134233,0.22,56978.0,56972.0,0.087757]
[1725975134429,0.221,56978.0,56975.0,0.001]
[1725975135038,0.223,56978.0,56975.0,0.002]
[1725975135242,0.087751,56976.0,56975.0,0.002]
[1725975135535,0.003,56978.0,56977.0,0.08775]
[1725975135737,0.001,56978.0,56977.0,0.08775]
[1725975135932,0.003,56978.0,56977.0,0.08775]
[1725975136534,0.003,56978.0,56977.0,1.07492663]
[1725975136736,0.003,56978.0,56977.0,1.16267663]
[1725975136951,0.003,56978.0,56977.0,1.02098236]
[1725975137135,0.003,56978.0,56977.0,1.21326124]
[1725975137336,0.003,56978.0,56977.0,1.10815899]
[1725975137846,0.0041,56988.0,56987.0,0.087734]
[1725975138039,0.62240001,57000.0,56987.0,0.27246569]
[1725975138236,0.707715,57000.0,56993.0,0.087724]
[1725975138441,0.707715,57000.0,56985.0,0.06995425]
[1725975138442,0.087724,56994.0,56985.0,0.05246569]
[1725975138638,0.22,56999.0,56986.0,0.087736]
[1725975138943,0.22,56993.0,56977.0,0.002]
[1725975139148,0.22,56993.0,56974.0,0.30456845]
[1725975139450,0.087731,56989.0,56987.0,0.001]
[1725975139645,0.1005,56988.0,56987.0,0.001]
[1725975140146,0.22,56998.0,56987.0,0.001]
[1725975140445,0.1005,56997.0,56987.0,0.001]
[1725975140652,0.1005,56997.0,56987.0,0.002]
[1725975141241,0.1005,56997.0,56987.0,0.089733]
[1725975141439,0.1005,56997.0,56987.0,0.002]
[1725975142045,0.1005,56997.0,56996.0,0.087721]
[1725975143055,0.1005,56997.0,56996.0,0.307721]
[1725975143237,0.1005,56997.0,56996.0,0.087721]
[1725975143741,0.1005,56997.0,56996.0,0.088721]
[1725975144647,0.1005,56997.0,56996.0,0.089721]
[1725975145449,0.62228001,57000.0,56999.0,0.087716]
[1725975145750,0.62,57000.0,56999.0,0.087716]
[1725975146547,0.01663529,57013.0,57012.0,0.087696]
[1725975146749,0.10357183,57021.0,57012.0,0.7462]
[1725975147043,0.10357183,57023.0,57021.0,0.087681]
[1725975147245,0.0966,57032.0,57013.0,0.9]
[1725975147246,0.10357183,57024.0,57022.0,0.22]
[1725975147438,0.10357183,57031.0,57023.0,0.22]
[1725975147644,0.13199658,57031.0,57028.0,0.08767]
[1725975147845,0.13199658,57030.0,57028.0,0.08767]
[1725975148047,0.13199658,57030.0,57023.0,0.22]
[1725975148048,0.02842475,57029.0,57023.0,0.22]
[1725975148251,0.0966,57032.0,57023.0,0.22]
[1725975148456,0.02842482,57031.0,57023.0,0.22]
[1725975148750,0.02842482,57031.0,57023.0,0.307678]
[1725975148950,0.02842482,57031.0,57024.0,0.087677]
[1725975149151,0.0966,57032.0,57023.0,0.22]
[1725975149450,0.0966,57032.0,57028.0,0.088671]
[1725975149852,0.0966,57032.0,57030.0,0.087667]
[1725975150742,0.0966,57032.0,57030.0,0.307667]
[1725975151341,0.0966,57032.0,57030.0,0.22]
[1725975151655,0.0966,57032.0,57028.0,0.001]
[1725975152240,0.0966,57032.0,57030.0,0.001]
[1725975152440,0.0966,57032.0,57030.0,0.002]
[1725975153149,0.0966,57032.0,56990.0,0.087729]
[1725975153150,0.087683,57021.0,57012.0,0.087695]
[1725975153353,0.087683,57021.0,57013.0,0.087694]
[1725975153551,0.087683,57021.0,57014.0,0.087693]
[1725975153850,0.29193783,57032.0,57014.0,0.22]
[1725975153851,0.087675,57026.0,57014.0,0.22]
[1725975154652,0.0966,57032.0,57019.0,0.22]
[1725975154848,0.0966,57032.0,57025.0,0.087675]
[1725975155151,0.0966,57032.0,57026.0,0.087674]
[1725975155345,0.0966,57032.0,57027.0,0.087672]
[1725975155557,0.0966,57032.0,57023.0,0.22]
[1725975155558,0.0966,57032.0,57031.0,0.087667]
[1725975156753,0.0986,57032.0,57031.0,0.088667]
[1725975157146,0.1006,57032.0,57031.0,0.089667]
[1725975158160,0.188265,57032.0,57031.0,0.002]
[1725975159656,0.187265,57032.0,57031.0,0.002]
[1725975160158,0.0996,57032.0,57031.0,0.089667]
[1725975160351,0.0996,57032.0,57031.0,0.002]
[1725975160662,0.0996,57032.0,57031.0,0.089667]
[1725975163253,0.187265,57032.0,57031.0,0.002]
[1725975164057,1.22564,57032.0,57019.0,0.087684]
[1725975164254,1.22564,57032.0,57007.0,0.087702]
[1725975164255,0.087687,57018.0,57009.0,0.03167187]
[1725975164453,0.1994,57017.0,57016.0,0.08769]
[1725975164664,0.1994,57017.0,57016.0,0.30769]
[1725975165164,0.08768,57023.0,57020.0,0.087683]
[1725975165364,0.32968001,57028.0,57024.0,0.087676]
[1725975165365,0.2011,57027.0,57024.0,0.087676]
[1725975165667,0.288773,57027.0,57025.0,0.087676]
[1725975165963,0.2011,57027.0,57026.0,0.087674]
[1725975166867,0.2031,57027.0,57026.0,0.087674]
[1725975167067,0.2051,57027.0,57026.0,0.087674]
[1725975167462,0.2051,57027.0,57025.0,0.002]
[1725975167463,0.292774,57027.0,57025.0,0.002]
[1725975167762,0.293774,57027.0,57026.0,0.001]
[1725975168070,1.33318,57027.0,57008.0,0.22]
[1725975168258,0.22,57025.0,57013.0,0.087694]
[1725975168565,0.087686,57019.0,57016.0,0.087689]
[1725975168756,0.02843088,57018.0,57016.0,0.087689]
[1725975169157,0.087686,57019.0,57016.0,0.087689]
[1725975169158,0.02843129,57017.0,57016.0,0.087689]
[1725975169459,0.13200312,57018.0,57016.0,0.087689]
[1725975169655,0.02843129,57017.0,57016.0,0.087689]
[1725975170567,0.001,57017.0,57016.0,0.087689]
[1725975170867,0.02943129,57017.0,57016.0,0.087689]
[1725975171164,0.03043129,57017.0,57016.0,0.087689]
[1725975171571,0.08147209,57017.0,57016.0,0.087689]
[1725975172063,0.03043129,57017.0,57016.0,0.087689]
[1725975172464,0.002,57017.0,57016.0,0.087689]
[1725975172668,0.08152826,57017.0,57016.0,0.087689]
[1725975172970,0.08152826,57017.0,57016.0,0.088689]
[1725975172971,0.08452826,57017.0,57016.0,0.088689]
[1725975176373,0.005,57017.0,57016.0,0.088689]
[1725975176771,0.003,57017.0,57016.0,0.088689]
[1725975177072,0.005,57017.0,57016.0,0.089689]
[1725975177270,0.002,57017.0,57016.0,0.088689]
[1725975177468,0.002,57017.0,57016.0,0.308689]
[1725975177675,0.005,57017.0,57016.0,0.309689]
[1725975177973,0.003,57017.0,57016.0,0.308689]
[1725975178373,0.005,57017.0,57016.0,0.308689]
[1725975179167,0.005,57017.0,57016.0,0.396379]
[1725975179376,0.002,57017.0,57016.0,0.395379]
[1725975179671,0.005,57017.0,57016.0,0.396379]
[1725975179978,0.005,57017.0,57016.0,0.308689]
[1725975180661,0.005,57017.0,57016.0,0.396379]
[1725975180865,0.186771,57028.0,57027.0,0.087673]
[1725975180866,0.0991,57028.0,57027.0,0.087673]
[1725975181067,0.0991,57028.0,57024.0,0.087677]
[1725975181472,0.186772,57028.0,57025.0,0.087675]
[1725975181867,0.186772,57028.0,57026.0,0.087674]
[1725975182170,0.087673,57027.0,57026.0,0.087674]
[1725975183271,0.087673,57027.0,57023.0,0.087679]
[1725975183465,0.087673,57027.0,57024.0,0.087677]
[1725975183666,0.087673,57027.0,57025.0,0.087676]
[1725975183865,0.087673,57027.0,57026.0,0.001]
[1725975184061,0.087673,57027.0,57022.0,0.03151899]
[1725975184267,0.08769,57016.0,57009.0,0.08744281]
[1725975184571,0.52608,57026.0,56998.0,0.12204728]
[1725975184572,0.087705,57006.0,56998.0,0.12204728]
[1725975184786,0.175432,56999.0,56998.0,0.12204728]
[1725975185083,0.087733,56988.0,56987.0,0.26297445]
[1725975185267,0.847733,56988.0,56987.0,0.26297445]
[1725975185469,1.374173,56988.0,56987.0,0.26297445]
[1725975186067,1.521906,56988.0,56987.0,0.26297445]
[1725975186273,1.521906,56988.0,56987.0,0.10467445]
[1725975186573,1.434173,56988.0,56987.0,0.10467445]
[1725975186767,1.434173,56988.0,56987.0,0.10567445]
[1725975186768,1.440173,56988.0,56987.0,0.10567445]
[1725975187667,0.620173,56988.0,56987.0,0.001]
[1725975187867,0.627173,56988.0,56987.0,0.002]
[1725975188072,1.447173,56988.0,56987.0,0.002]
[1725975189277,0.847173,56988.0,56987.0,0.002]
[1725975189481,1.447173,56988.0,56987.0,0.002]
[1725975189778,0.847173,56988.0,56987.0,0.002]
[1725975189975,1.447173,56988.0,56987.0,0.002]
[1725975190371,1.82627418,56988.0,56987.0,0.002]
[1725975190568,1.68949157,56988.0,56987.0,0.002]
[1725975190777,0.307748,56978.0,56977.0,0.0041]
[1725975190989,0.087751,56976.0,56970.0,0.08776]
[1725975191283,0.087756,56973.0,56961.0,0.12767036]
[1725975191471,0.307758,56972.0,56966.0,0.087766]
[1725975191674,0.307758,56972.0,56961.0,0.0954]
[1725975191871,0.22,56972.0,56961.0,0.0954]
[1725975192072,0.087754,56975.0,56961.0,0.0954]
[1725975192279,0.22,56976.0,56972.0,0.087757]
[1725975192783,0.001,56972.0,56966.0,0.008]
[1725975193576,0.001,56972.0,56969.0,0.087761]
[1725975193972,0.221,56972.0,56966.0,0.008]
[1725975194181,0.308758,56972.0,56966.0,0.008]
[1725975194378,0.088758,56972.0,56966.0,0.008]
[1725975194578,0.08776,56971.0,56967.0,0.087765]
[1725975194774,0.307759,56972.0,56956.0,0.087782]
[1725975194979,0.22,56957.0,56951.0,0.189889]
[1725975195272,0.087776,56960.0,56957.0,0.087781]
[1725975195579,0.22,56963.0,56958.0,0.087778]
[1725975196075,0.22,56963.0,56959.0,0.087777]
[1725975196383,0.087764,56968.0,56961.0,0.087773]
[1725975196681,0.0041,56976.0,56961.0,0.087773]
[1725975196682,0.22,56965.0,56961.0,0.087773]
[1725975197382,0.30777,56965.0,56957.0,0.095781]
[1725975197583,0.22,56958.0,56957.0,0.008]
[1725975197782,0.307779,56958.0,56957.0,0.008]
[1725975198077,0.08777,56965.0,56962.0,0.087773]
[1725975198281,0.001,56963.0,56962.0,0.087773]
[1725975198773,0.22,56972.0,56960.0,0.03239173]
[1725975198976,0.001,56963.0,56962.0,0.087773]
[1725975199685,0.001,56963.0,56962.0,0.089773]
[1725975199878,0.22,56967.0,56965.0,0.087767]
[1725975200081,0.22,56967.0,56966.0,0.087767]
[1725975200379,0.22,56967.0,56962.0,0.005]
[1725975200380,0.091847,56979.0,56976.0,0.087751]
[1725975200578,0.22,56980.0,56978.0,0.087747]
[1725975200781,0.307746,56980.0,56966.0,0.087766]
[1725975200975,0.087747,56979.0,56974.0,0.087754]
[1725975201579,0.08775,56978.0,56974.0,0.087754]
[1725975201780,0.087747,56979.0,56975.0,0.087752]
[1725975201980,0.087747,56979.0,56976.0,0.087751]
[1725975202184,0.087748,56978.0,56976.0,0.087751]
[1725975202485,0.08775,56977.0,56974.0,0.001]
[1725975202681,0.22,56975.0,56974.0,0.001]
[1725975202989,0.22,56975.0,56974.0,0.088754]
[1725975203285,0.011,56979.0,56977.0,0.08775]
[1725975203482,0.011,56979.0,56976.0,0.08775]
[1725975203681,0.01,56977.0,56976.0,0.08775]
[1725975205583,0.012,56979.0,56978.0,0.087747]
[1725975206376,0.087749,56978.0,56974.0,0.087753]
[1725975206580,0.10675,56977.0,56976.0,0.002]
[1725975206780,0.32675,56977.0,56976.0,0.002]
[1725975207082,0.239,56977.0,56976.0,0.089751]
[1725975208177,0.31675,56977.0,56976.0,0.088751]
[1725975208377,0.087751,56976.0,56967.0,0.13570686]
[1725975208582,0.011,56979.0,56963.0,0.08777]
[1725975208583,0.08777,56964.0,56963.0,0.08777]
[1725975208789,0.087776,56961.0,56958.0,0.087778]
[1725975208990,0.087758,56972.0,56955.0,0.087784]
[1725975208991,0.08778,56958.0,56955.0,0.087784]
[1725975209289,0.22,56959.0,56954.0,0.1056]
[1725975209681,0.22,56959.0,56957.0,0.087779]
[1725975209890,0.22,56959.0,56954.0,0.1056]
[1725975210090,0.087781,56957.0,56949.0,0.03140593]
[1725975210292,0.002,56958.0,56957.0,0.087781]
[1725975210486,0.002,56958.0,56955.0,0.024]
[1725975210796,0.087782,56956.0,56955.0,0.024]
[1725975211092,0.002,56958.0,56947.0,0.087795]
[1725975211093,0.087793,56950.0,56947.0,0.087795]
[1725975211391,0.087793,56950.0,56948.0,0.087794]
[1725975211580,0.087793,56950.0,56943.0,0.1056]
[1725975211581,0.22,56949.0,56943.0,0.1056]
[1725975211781,0.08978,56958.0,56937.0,0.41157487]
[1725975211782,0.22,56944.0,56937.0,0.41157487]
[1725975211982,0.22,56940.0,56939.0,0.087808]
[1725975212186,0.22,56940.0,56922.0,0.19104422]
[1725975212492,0.22,56931.0,56922.0,0.101]
[1725975212880,0.10265613,56951.0,56927.0,0.22]
[1725975212881,0.0998,56950.0,56927.0,0.22]
[1725975213086,0.22,56946.0,56931.0,0.22]
[1725975213490,0.002,56940.0,56931.0,0.22]
[1725975213893,0.002,56940.0,56929.0,0.08706295]
[1725975213894,0.002,56940.0,56939.0,0.087808]
[1725975214382,0.002,56940.0,56939.0,1.214688]
[1725975214781,0.002,56940.0,56939.0,0.614688]
[1725975214983,0.002,56940.0,56939.0,0.087808]
[1725975214984,0.001,56940.0,56939.0,0.087808]
[1725975215183,0.221,56950.0,56937.0,0.1032]
[1725975215396,0.001,56946.0,56944.0,0.0878]
[1725975215892,0.001,56946.0,56945.0,0.087799]
[1725975216093,0.22,56950.0,56945.0,0.087799]
[1725975216499,0.22,56950.0,56939.0,0.006]
[1725975216500,0.308792,56950.0,56942.0,0.087803]
[1725975216794,0.308792,56950.0,56939.0,0.003]
[1725975216999,0.22,56946.0,56939.0,0.090808]
[1725975217201,0.22,56940.0,56939.0,0.003]
[1725975217887,0.22,56945.0,56939.0,0.003]
[1725975218093,0.22,56945.0,56941.0,0.087805]
[1725975218691,0.087805,56942.0,56928.0,0.22]
[1725975218899,0.22,56940.0,56937.0,0.087811]
[1725975219198,0.22,56940.0,56922.0,0.1022]
[1725975219199,0.087813,56936.0,56922.0,0.1022]
[1725975219388,0.22,56940.0,56934.0,0.087816]
[1725975219588,0.22,56940.0,56935.0,0.087814]
[1725975219888,0.307807,56940.0,56935.0,0.087815]
[1725975220096,0.308807,56940.0,56937.0,0.004]
[1725975220705,0.221,56940.0,56937.0,0.004]
[1725975221605,0.308807,56940.0,56937.0,0.004]
[1725975222197,0.087799,56945.0,56940.0,0.087806]
[1725975222397,0.087802,56943.0,56935.0,0.004]
[1725975222593,0.087802,56943.0,56938.0,0.087808]
[1725975223096,0.001,56940.0,56938.0,0.087808]
[1725975223293,0.002,56940.0,56937.0,0.008]
[1725975223508,0.30781,56938.0,56937.0,0.008]
[1725975223800,0.30781,56938.0,56937.0,0.004]
[1725975224002,0.087817,56934.0,56923.0,0.11321098]
[1725975224206,0.22,56924.0,56923.0,0.11321098]
[1725975224403,0.307832,56924.0,56923.0,0.02537798]
[1725975224701,0.087839,56920.0,56905.0,0.1057]
[1725975224900,0.22,56918.0,56915.0,0.087845]
[1725975225208,0.307842,56918.0,56915.0,0.087845]
[1725975225411,0.087843,56917.0,56912.0,0.08785]
[1725975225605,0.22,56913.0,56908.0,0.087856]
[1725975225810,0.22,56909.0,56904.0,0.087862]
[1725975226010,0.22,56905.0,56902.0,0.02560575]
[1725975226200,0.22,56905.0,56895.0,0.1057]
[1725975226405,0.22,56900.0,56895.0,0.1057]
[1725975226608,0.0041,56914.0,56890.0,0.1]
[1725975226609,0.22,56905.0,56890.0,0.1]
[1725975227106,0.22,56905.0,56899.0,0.08787]
[1725975227407,0.001,56913.0,56898.0,0.22]
[1725975227408,0.221,56913.0,56898.0,0.22]
[1725975227607,0.221,56913.0,56905.0,0.08786]
[1725975228203,0.22,56908.0,56905.0,0.08786]
[1725975228401,0.22,56908.0,56906.0,0.087859]
[1725975228609,0.22,56908.0,56894.0,0.22]
[1725975228806,0.087839,56920.0,56894.0,0.02573988]
[1725975228807,0.001,56900.0,56894.0,0.02573988]
[1725975229008,0.001,56900.0,56890.0,0.1]
[1725975229508,0.22,56904.0,56899.0,0.08787]
[1725975229708,0.22,56904.0,56890.0,0.12581327]
[1725975229709,0.087864,56903.0,56894.0,0.087876]
[1725975229907,0.22,56900.0,56894.0,0.087876]
[1725975230103,0.22,56900.0,56890.0,0.12581327]
[1725975230104,0.22,56900.0,56895.0,0.087876]
[1725975230304,0.221,56900.0,56895.0,0.087876]
[1725975230813,0.221,56900.0,56896.0,0.087875]
[1725975231106,0.001,56900.0,56894.0,0.22]
[1725975231316,0.002,56900.0,56890.0,0.12581327]
[1725975231809,0.002,56900.0,56899.0,0.08787]
[1725975232404,0.001,56900.0,56899.0,0.08787]
[1725975232600,0.087878,56894.0,56890.0,0.02581327]
[1725975232805,0.22,56891.0,56880.0,0.0981]
[1725975233005,0.19057,56899.0,56880.0,0.0981]
[1725975233006,0.22,56885.0,56880.0,0.0981]
[1725975233413,0.22,56885.0,56882.0,0.087896]
[1725975233606,0.5274,56884.0,56858.0,0.22]
[1725975233806,0.22,56871.0,56866.0,0.087921]
[1725975234017,0.22,56871.0,56858.0,0.096]